[Event "Tata Steel-A 79th"]
[Site "Wijk aan Zee"]
[Date "2017.01.27"]
[Round "11"]
[White "Carlsen, Magnus"]
[Black "Adhiban, Baskaran"]
[Result "1/2-1/2"]
[ECO "B01"]
[WhiteElo "2840"]
[BlackElo "2653"]
[PlyCount "98"]
[EventDate "2017.01.14"]
[EventType "tourn"]
[EventRounds "13"]
[EventCountry "NED"]
[EventCategory "21"]
[SourceTitle "CBM 177"]
[Source "ChessBase"]
[SourceDate "2017.03.16"]
[SourceVersion "1"]
[SourceVersionDate "2017.03.16"]
[SourceQuality "1"]
[TimeControl "40/6000+30:20/3000+30:900+30"]

1. e4 {[%emt 0:00:55]} d5 {[%emt 0:00:05]} 2. exd5 {[%emt 0:00:05]} Nf6 {
[%emt 0:00:04]} 3. Nf3 {[%emt 0:01:47]} Nxd5 {[%emt 0:00:11]} 4. d4 {[%emt 0:
02:00]} Bg4 {[%emt 0:00:06]} 5. h3 {[%emt 0:01:35]} Bh5 {[%emt 0:01:38]} 6. Be2
{[%emt 0:00:56]} Nc6 {[%emt 0:00:10]} 7. O-O {[%emt 0:03:49]} e6 {[%emt 0:00:
09]} 8. c3 {[%emt 0:07:53]} (8. c4 Nf6 9. Nc3 Be7 10. Be3 O-O 11. Qd2 Bg6 12.
Bd3 Bxd3 13. Qxd3 Nb4 14. Qe2 c6 15. a3 Na6 16. b4 Nc7 17. Rab1 Qc8 18. Rfc1 a5
19. Ne5 axb4 20. axb4 Ra3 21. Qb2 Ra8 22. Qb3 Nd7 23. Na4 Rb8 24. Bf4 Nxe5 25.
Bxe5 f6 26. Nb6 Qd8 27. Bxc7 Qxc7 28. c5 Bd8 29. Qxe6+ Qf7 30. Qxf7+ Rxf7 31.
Nc4 Rd7 32. b5 cxb5 33. Nd6 b6 34. Rxb5 Bc7 35. Nf5 bxc5 36. Rxb8+ Bxb8 37.
dxc5 Bf4 {Gdanski,J (2542)-Pakleza,Z (2509) Katowice 2010 1-0 (65)}) 8... Be7 {
[%emt 0:07:39]} 9. Ne5 {[%emt 0:01:31]} Nxe5 {[%emt 0:14:28]} 10. Bxh5 {
[%emt 0:00:08]} Ng6 {[%emt 0:00:02]} 11. Qb3 $146 {[%emt 0:09:58]} (11. Bf3 c6
12. Re1 O-O 13. Nd2 Qc7 14. Nc4 Rad8 15. Qe2 Bf6 16. g3 Nb6 17. Ne3 Be7 18. h4
c5 19. h5 cxd4 20. hxg6 dxe3 21. gxf7+ Rxf7 22. Bxe3 Kh8 23. Be4 g6 24. Qg4 Bc5
25. Qxe6 Rdf8 26. Bd4+ Bxd4 27. cxd4 Rxf2 28. Qe5+ Qxe5 29. dxe5 Rxb2 30. Bxb7
Nc8 31. Reb1 Re2 32. Rf1 Re8 33. Bc6 Rd8 34. Rae1 Rxe1 35. Rxe1 Ne7 36. Ba4 Rd2
37. Bb3 h5 38. Re4 Kg7 39. g4 hxg4 40. Rxg4 Re2 {Vospernik,M-Karaklajic,N
Zagreb 1961 1/2-1/2}) 11... Rb8 {[%emt 0:08:29]} 12. c4 {[%emt 0:09:09]} Nf6 {
[%emt 0:02:20]} 13. Bxg6 {[%emt 0:00:46]} hxg6 {[%emt 0:00:04]} 14. Qa4+ {
[%emt 0:00:05]} c6 {[%emt 0:17:56]} 15. Qxa7 {[%emt 0:00:10]} Bd6 {[%emt 0:00:
20]} 16. Nc3 {[%emt 0:02:29]} Bc7 {[%emt 0:00:34]} 17. Rd1 {[%emt 0:04:49]} Qd6
{[%emt 0:06:40]} 18. g3 {[%emt 0:00:40]} Qd7 {[%emt 0:03:11]} 19. h4 {[%emt 0:
00:40]} O-O {[%emt 0:02:34]} 20. Qc5 {[%emt 0:03:37]} b5 {[%emt 0:05:03]} 21.
cxb5 {[%emt 0:11:02]} cxb5 {[%emt 0:00:04]} 22. a3 {[%emt 0:01:02]} Rfc8 {
[%emt 0:03:36]} 23. Qg5 {[%emt 0:00:27]} b4 {[%emt 0:00:28]} 24. axb4 {[%emt 0:
02:01]} Rxb4 {[%emt 0:00:01]} 25. Qd2 {[%emt 0:12:37]} Bb6 {[%emt 0:02:43]} 26.
Ne2 {[%emt 0:00:20]} Rbc4 {[%emt 0:00:25]} 27. Qd3 {[%emt 0:01:41]} e5 {
[%emt 0:06:43]} 28. Bg5 {[%emt 0:00:39]} Ng4 {[%emt 0:03:31]} 29. Rac1 {
[%emt 0:04:42]} Rxc1 {[%emt 0:00:39]} 30. Rxc1 {[%emt 0:00:03]} Re8 {[%emt 0:
02:39]} 31. Rd1 {[%emt 0:09:46]} exd4 {[%emt 0:04:23]} 32. Bf4 {[%emt 0:00:02]}
Nf6 {[%emt 0:00:47]} 33. Nc1 {[%emt 0:01:24]} Nd5 {[%emt 0:08:04]} 34. Bd2 {
[%emt 0:01:55]} Qc6 {[%emt 0:00:12]} 35. Ne2 {[%emt 0:01:09]} Qf6 {[%emt 0:05:
26]} 36. Rc1 {[%emt 0:01:00]} Qf5 {[%emt 0:01:09]} 37. Qxf5 {[%emt 0:05:05]}
gxf5 {[%emt 0:00:02]} 38. Kf1 {[%emt 0:00:08]} d3 {[%emt 0:00:20]} 39. Nc3 {
[%emt 0:00:17]} Nxc3 {[%emt 0:03:28]} 40. Rxc3 {[%emt 0:00:00]} Bd4 {[%emt 0:
01:00]} 41. Rb3 {[%emt 0:01:00]} g6 {[%emt 0:03:40]} 42. f3 {[%emt 0:01:12]}
Be5 {[%emt 0:06:43]} 43. g4 {[%emt 0:01:03]} fxg4 {[%emt 0:01:27]} 44. fxg4 {
[%emt 0:00:02]} Bf6 {[%emt 0:00:48]} 45. h5 {[%emt 0:00:28]} gxh5 {[%emt 0:01:
29]} 46. gxh5 {[%emt 0:00:01]} Re5 {[%emt 0:02:37]} 47. h6 {[%emt 0:00:46]} Kh7
{[%emt 0:00:25]} 48. Rxd3 {[%emt 0:01:08]} Rf5+ {[%emt 0:00:04]} 49. Ke2 {
[%emt 0:00:05]} Bxb2 {[%emt 0:00:04]} 1/2-1/2

[Event "Grenke Chess Classic 4th"]
[Site "Karlsruhe/Baden-Baden"]
[Date "2017.04.17"]
[Round "3"]
[White "Hou, Yifan"]
[Black "Carlsen, Magnus"]
[Result "1/2-1/2"]
[ECO "B90"]
[WhiteElo "2649"]
[BlackElo "2838"]
[Annotator "Moradiabadi,E"]
[PlyCount "75"]
[EventDate "2017.04.15"]
[EventType "tourn"]
[EventRounds "7"]
[EventCountry "GER"]
[EventCategory "20"]
[SourceTitle "CBM 178"]
[Source "ChessBase"]
[SourceDate "2017.05.14"]
[SourceVersion "1"]
[SourceVersionDate "2017.05.14"]
[SourceQuality "1"]
[TimeControl "60"]

1. e4 {[%emt 0:00:00]} c5 {[%emt 0:00:07]} 2. Nf3 {[%emt 0:00:00]} d6 {[%emt 0:
00:00]} 3. d4 {[%emt 0:00:01]} cxd4 {[%emt 0:00:07]} 4. Nxd4 {[%emt 0:00:04]}
Nf6 {[%emt 0:00:08]} 5. Nc3 {[%emt 0:00:05]} a6 {[%emt 0:00:09]} 6. a4 {
[%emt 0:05:20] A choice of Carlsen himself.} e5 {[%emt 0:03:25]} 7. Nf3 {
[%emt 0:00:07]} Be7 {[%emt 0:00:06]} 8. Bg5 {[%emt 0:01:52] Less ambitious but
more solid!} Be6 {[%emt 0:00:00]} 9. Bxf6 {[%emt 0:01:19]} Bxf6 {[%emt 0:00:23]
} 10. Nd5 {[%emt 0:00:05]} Nd7 {[%emt 0:00:16]} 11. Bc4 {[%emt 0:00:50]} Rc8 {
[%emt 0:00:52]} 12. Qe2 {[%emt 0:06:14]} Nb6 {[%emt 0:15:06] The World
Champion spent a lot of time here. I am sure he knew the right continuation
but was unhappy with the course of the game which has let White dry up the
position.} 13. Nxf6+ {[%emt 0:08:57]} Qxf6 {[%emt 0:01:44]} 14. Bxe6 {[%emt 0:
00:07]} Qxe6 {[%emt 0:00:14]} 15. O-O {[%emt 0:00:48]} (15. b3 O-O 16. Rd1 Rc6
{1/2-1/2 (16) Svidler,P (2739)-Grischuk,A (2746) Khanty-Mansiysk 2011}) 15...
O-O {[%emt 0:18:40]} 16. Rfd1 {[%emt 0:05:39]} Rc6 {[%emt 0:06:59]} 17. a5 {
[%emt 0:18:39] Finally a new move after a long think by the World Women's
number one.} Nd7 {[%emt 0:00:15]} 18. b3 {[%emt 0:00:08]} Rfc8 {[%emt 0:03:14]}
19. Rd2 {[%emt 0:07:35]} Nc5 {[%emt 0:07:45]} 20. Rad1 {[%emt 0:12:17]} Qe7 {
[%emt 0:01:06]} 21. Qe3 {[%emt 0:00:25]} g6 {[%emt 0:07:16]} 22. g3 {[%emt 0:
02:33] The position is balanced but unlike most of the cases, it is Carlsen
who does not have the patience to wait.} b5 $6 {[%emt 0:02:05] Played after
just a short thinking since Black needs to save time as Carlsen spent a lot of
time early on in the game.} (22... Ne6 23. c4 Rb8 {and now b6 where Black
compensates for his weaknesses by attacking b3.}) 23. axb6 {[%emt 0:00:14]}
Rxb6 {[%emt 0:00:02]} 24. Rd5 {[%emt 0:05:39]} Rcc6 $6 {[%emt 0:16:20] A
strange square for the rook.} (24... Rbc6 25. Nd2 Ne6 26. Nc4 Nd4 27. c3 Nxb3
28. Nxd6 Rf8 29. c4 Nd4 30. c5 {is not fun to play but is better than what
Carlsen did.}) 25. Nd2 $1 {[%emt 0:03:59]} Nb7 {[%emt 0:00:00]} 26. Nc4 {
[%emt 0:01:40]} Rb5 {[%emt 0:00:02]} 27. Qa7 $1 $16 {[%emt 0:00:00] Excellent
play by Hou Yifan, Black is completely tied up!} Qc7 {[%emt 0:00:00]} 28. Rxb5
$2 {[%emt 0:12:11] A pity. Hou Yifan concedes a draw precisely when she had
the World Champion on the ropes!} (28. h4 h5 29. Ra1 Rb4 $1 30. Rd2 $1 {
An excellent prophylactic move.} ({Rushing to take the pawn with} 30. Rxa6 {
would let Black confuse the issue with the strong exchange sacrifice} Rcxc4 $1
31. bxc4 Rb1+ 32. Kh2 $1 {The reason this is the best move will be clear in an
instant:} Qxc4 33. Ra1 {Now it is understood. If the king had been on g2,
Black could have struck with ...Qf1+, but now there is no such killer blow.
Therefore} Rxa1 34. Qxa1 Qxc2 35. Kg1 Nc5 36. Rxd6 Nxe4 37. Rd8+ Kh7 38. Qa7
Qb3 {with good winning chances but it is not clear how winning this position
is... if at all.}) 30... a5 31. Ne3 Nc5 32. Qxc7 Rxc7 33. Rxd6 Nxe4 34. Rd5 f6
35. Raxa5 Rd4 36. Kg2 {and I believe Carlsen would be first in line to play
this position!}) 28... axb5 {[%emt 0:00:29]} 29. Nxd6 {[%emt 0:00:10] And now
the draw is inevitable.} Nxd6 {[%emt 0:00:39]} 30. Qxc7 {[%emt 0:00:05]} Rxc7 {
[%emt 0:00:12]} 31. Rxd6 {[%emt 0:00:04]} Rxc2 {[%emt 0:00:00]} 32. Rd5 {
[%emt 0:00:08]} Re2 {[%emt 0:00:47]} 33. Rxe5 {[%emt 0:00:25]} b4 {[%emt 0:00:
10]} 34. Rb5 {[%emt 0:00:41]} Rxe4 {[%emt 0:00:05]} 35. Kg2 {[%emt 0:00:12]}
Rd4 {[%emt 0:00:19]} 36. Kf1 {[%emt 0:00:19]} Re4 {[%emt 0:00:00]} 37. Kg2 {
[%emt 0:00:30]} Rd4 {[%emt 0:00:06]} 38. Kf1 {[%emt 0:00:06]} 1/2-1/2

[Event "Paris GCT Rapid"]
[Site "Paris"]
[Date "2017.06.22"]
[Round "6"]
[White "Nakamura, Hikaru"]
[Black "Carlsen, Magnus"]
[Result "1/2-1/2"]
[ECO "D11"]
[WhiteElo "2785"]
[BlackElo "2832"]
[PlyCount "71"]
[EventDate "2017.06.21"]
[EventType "tourn (rapid)"]
[EventRounds "9"]
[EventCountry "FRA"]
[EventCategory "22"]
[SourceTitle "CBM 179"]
[Source "ChessBase"]
[SourceDate "2017.07.12"]
[SourceVersion "1"]
[SourceVersionDate "2017.07.12"]
[SourceQuality "1"]
[TimeControl "1500"]

1. d4 {[%emt 0:00:00]} d5 {[%emt 0:00:00]} 2. c4 {[%emt 0:00:00]} c6 {[%emt 0:
00:00]} 3. Nf3 {[%emt 0:00:00]} Nf6 {[%emt 0:00:00]} 4. e3 {[%emt 0:00:00]} a6
{[%emt 0:00:00]} 5. Bd3 {[%emt 0:00:00]} Bg4 {[%emt 0:00:00]} 6. Nbd2 {[%emt 0:
00:00]} e6 {[%emt 0:00:00]} 7. h3 {[%emt 0:00:00]} Bf5 {[%emt 0:00:00]} 8. Bxf5
{[%emt 0:00:00]} exf5 {[%emt 0:00:00]} 9. Qb3 {[%emt 0:00:00]} Ra7 {[%emt 0:00:
06]} 10. cxd5 {[%emt 0:00:00]} cxd5 {[%emt 0:00:42]} 11. Ne5 {[%emt 0:00:00]}
Bd6 {[%emt 0:00:08]} 12. O-O {[%emt 0:00:00]} O-O {[%emt 0:00:29]} 13. Ndf3 {
[%emt 0:00:00]} Nc6 {[%emt 0:00:19]} 14. Bd2 {[%emt 0:00:00]} Ne4 {[%emt 0:03:
14]} 15. Rfd1 {[%emt 0:00:21]} Ne7 {[%emt 0:03:49]} 16. Rac1 {[%emt 0:00:22]}
f6 {[%emt 0:00:00]} 17. Nd3 {[%emt 0:00:00]} b6 {[%emt 0:02:37]} 18. Bb4 {
[%emt 0:00:08]} a5 {[%emt 0:00:00]} 19. Bxd6 {[%emt 0:02:16]} Qxd6 {[%emt 0:00:
00]} 20. Rc2 {[%emt 0:00:00]} g5 {[%emt 0:00:19]} 21. Rdc1 {[%emt 0:00:08]} Rb8
{[%emt 0:00:00]} 22. Qb5 {[%emt 0:01:36]} Qd7 {[%emt 0:00:48]} 23. Qxd7 {
[%emt 0:01:46]} Rxd7 {[%emt 0:00:00]} 24. Nd2 {[%emt 0:00:00]} Kf7 {[%emt 0:00:
14]} 25. Nb1 {[%emt 0:00:05]} Nd6 {[%emt 0:02:19]} 26. Nd2 {[%emt 0:00:06]} Ng6
{[%emt 0:01:00]} 27. Nb1 {[%emt 0:01:37]} Ne7 {[%emt 0:01:47]} 28. b3 {[%emt 0:
00:33]} Rc8 {[%emt 0:00:04]} 29. Rxc8 {[%emt 0:00:02]} Ndxc8 {[%emt 0:00:00]}
30. Nc3 {[%emt 0:00:07]} Nd6 {[%emt 0:01:34]} 31. Na4 {[%emt 0:00:08]} Rb7 {
[%emt 0:00:00]} 32. Kf1 {[%emt 0:00:10]} h6 {[%emt 0:00:00]} 33. Nc3 {[%emt 0:
00:35]} Rc7 {[%emt 0:00:32]} 34. Na4 {[%emt 0:00:02]} Rb7 {[%emt 0:00:00]} 35.
Nc3 {[%emt 0:00:00]} Rc7 {[%emt 0:00:00]} 36. Na4 {[%emt 0:00:00]} 1/2-1/2

[Event "Paris GCT Rapid"]
[Site "Paris"]
[Date "2017.06.23"]
[Round "7"]
[White "Carlsen, Magnus"]
[Black "Karjakin, Sergey"]
[Result "1/2-1/2"]
[ECO "C24"]
[WhiteElo "2832"]
[BlackElo "2781"]
[PlyCount "132"]
[EventDate "2017.06.21"]
[EventType "tourn (rapid)"]
[EventRounds "9"]
[EventCountry "FRA"]
[EventCategory "22"]
[SourceTitle "CBM 179"]
[Source "ChessBase"]
[SourceDate "2017.07.12"]
[SourceVersion "1"]
[SourceVersionDate "2017.07.12"]
[SourceQuality "1"]
[TimeControl "1500"]

1. e4 {[%emt 0:00:00]} e5 {[%emt 0:00:00]} 2. Nf3 {[%emt 0:00:00]} Nc6 {
[%emt 0:00:00]} 3. Bc4 {[%emt 0:00:00]} Bc5 {[%emt 0:00:00]} 4. O-O {[%emt 0:
00:00]} Nf6 {[%emt 0:00:00]} 5. d3 {[%emt 0:00:00]} O-O {[%emt 0:00:00]} 6. h3
{[%emt 0:00:00]} d5 {[%emt 0:00:00]} 7. exd5 {[%emt 0:00:00]} Nxd5 {[%emt 0:00:
00]} 8. a4 {[%emt 0:00:00]} f6 {[%emt 0:00:00]} 9. Nbd2 {[%emt 0:00:00]} Be6 {
[%emt 0:00:25]} 10. Nb3 {[%emt 0:00:22]} Be7 {[%emt 0:00:12]} 11. Re1 {[%emt 0:
00:07]} Kh8 {[%emt 0:00:58]} 12. Bd2 {[%emt 0:00:17]} Bg8 {[%emt 0:00:22]} 13.
d4 {[%emt 0:00:52]} exd4 {[%emt 0:01:19]} 14. Nbxd4 {[%emt 0:00:47]} Nxd4 {
[%emt 0:01:04]} 15. Nxd4 {[%emt 0:00:00]} Qd7 {[%emt 0:00:34]} 16. Qf3 {
[%emt 0:03:52]} Rfe8 {[%emt 0:01:11]} 17. Re4 {[%emt 0:02:28]} Bf8 {[%emt 0:03:
56]} 18. Rh4 {[%emt 0:01:09]} Re5 {[%emt 0:00:23]} 19. Bd3 {[%emt 0:00:19]} Rd8
{[%emt 0:04:02]} 20. Bf5 {[%emt 0:03:01]} Qe8 {[%emt 0:00:02]} 21. Qd3 {
[%emt 0:01:02]} Ne7 {[%emt 0:03:22]} 22. Bxh7 {[%emt 0:00:04]} Rh5 {[%emt 0:00:
35]} 23. Rxh5 {[%emt 0:00:42]} Qxh5 {[%emt 0:00:00]} 24. Bxg8 {[%emt 0:00:00]}
Kxg8 {[%emt 0:00:28]} 25. Be3 {[%emt 0:00:49]} c5 {[%emt 0:00:26]} 26. Qb3+ {
[%emt 0:02:53]} Qd5 {[%emt 0:00:00]} 27. c4 {[%emt 0:01:32]} Qe4 {[%emt 0:00:
00]} 28. Ne2 {[%emt 0:00:00]} Rd3 {[%emt 0:00:05]} 29. Nc3 {[%emt 0:00:00]} Nf5
{[%emt 0:01:23]} 30. Nxe4 {[%emt 0:00:38]} Rxb3 {[%emt 0:00:00]} 31. Bxc5 {
[%emt 0:00:00]} Bxc5 {[%emt 0:00:00]} 32. Nxc5 {[%emt 0:00:00]} Rxb2 {[%emt 0:
00:00]} 33. Rd1 {[%emt 0:00:03]} Rb4 {[%emt 0:02:50]} 34. Rd5 {[%emt 0:00:00]}
b6 {[%emt 0:01:01]} 35. Nd3 {[%emt 0:02:17]} Rb1+ {[%emt 0:00:00]} 36. Kh2 {
[%emt 0:00:00]} Rd1 {[%emt 0:00:00]} 37. c5 {[%emt 0:00:00]} Ne7 {[%emt 0:00:
10]} 38. Rd8+ {[%emt 0:00:00]} Kh7 {[%emt 0:00:00]} 39. cxb6 {[%emt 0:00:00]}
axb6 {[%emt 0:00:00]} 40. Rd7 {[%emt 0:00:00]} Nc8 {[%emt 0:00:00]} 41. g4 {
[%emt 0:00:06]} Ra1 {[%emt 0:00:00]} 42. Nf4 {[%emt 0:00:00]} Rxa4 {[%emt 0:00:
00]} 43. Nh5 {[%emt 0:00:00]} Ra7 {[%emt 0:00:00]} 44. Nxf6+ {[%emt 0:00:00]}
Kg6 {[%emt 0:00:00]} 45. Rxa7 {[%emt 0:00:11]} Nxa7 {[%emt 0:00:00]} 46. Nd5 {
[%emt 0:00:00]} b5 {[%emt 0:00:00]} 47. Nb4 {[%emt 0:00:00]} Kf6 {[%emt 0:00:
00]} 48. f4 {[%emt 0:00:00]} Ke6 {[%emt 0:00:00]} 49. h4 {[%emt 0:00:00]} Kd6 {
[%emt 0:00:00]} 50. h5 {[%emt 0:00:00]} Nc6 {[%emt 0:00:00]} 51. Nxc6 {[%emt 0:
00:26]} Kxc6 {[%emt 0:00:00]} 52. g5 {[%emt 0:00:00]} b4 {[%emt 0:00:00]} 53.
h6 {[%emt 0:00:00]} gxh6 {[%emt 0:00:00]} 54. gxh6 {[%emt 0:00:00]} b3 {
[%emt 0:00:00]} 55. h7 {[%emt 0:00:00]} b2 {[%emt 0:00:00]} 56. h8=Q {[%emt 0:
00:00]} b1=Q {[%emt 0:00:00]} 57. Qe5 {[%emt 0:00:00]} Qd3 {[%emt 0:00:00]} 58.
Qe6+ {[%emt 0:00:24]} Qd6 {[%emt 0:00:00]} 59. Qc8+ {[%emt 0:00:00]} Kd5 {
[%emt 0:00:00]} 60. Kg3 {[%emt 0:00:00]} Qg6+ {[%emt 0:00:00]} 61. Qg4 {
[%emt 0:00:00]} Qf6 {[%emt 0:00:00]} 62. Qh5+ {[%emt 0:00:16]} Kd6 {[%emt 0:00:
00]} 63. Kg4 {[%emt 0:00:00]} Ke7 {[%emt 0:00:00]} 64. Qh7+ {[%emt 0:00:00]}
Kf8 {[%emt 0:00:00]} 65. Qe4 {[%emt 0:00:03]} Kg7 {[%emt 0:00:00]} 66. Qe8 {
[%emt 0:00:00]} Qg6+ {[%emt 0:00:00]} 1/2-1/2

[Event "Paris GCT Rapid"]
[Site "Paris"]
[Date "2017.06.23"]
[Round "8"]
[White "Caruana, Fabiano"]
[Black "Carlsen, Magnus"]
[Result "1/2-1/2"]
[ECO "C84"]
[WhiteElo "2808"]
[BlackElo "2832"]
[PlyCount "158"]
[EventDate "2017.06.21"]
[EventType "tourn (rapid)"]
[EventRounds "9"]
[EventCountry "FRA"]
[EventCategory "22"]
[SourceTitle "CBM 179"]
[Source "ChessBase"]
[SourceDate "2017.07.12"]
[SourceVersion "1"]
[SourceVersionDate "2017.07.12"]
[SourceQuality "1"]
[TimeControl "1500"]

1. e4 {[%emt 0:00:00]} e5 {[%emt 0:00:00]} 2. Nf3 {[%emt 0:00:00]} Nc6 {
[%emt 0:00:00]} 3. Bb5 {[%emt 0:00:00]} a6 {[%emt 0:00:00]} 4. Ba4 {[%emt 0:00:
00]} Nf6 {[%emt 0:00:00]} 5. O-O {[%emt 0:00:00]} Be7 {[%emt 0:00:00]} 6. d3 {
[%emt 0:00:00]} b5 {[%emt 0:00:00]} 7. Bb3 {[%emt 0:00:00]} d6 {[%emt 0:00:00]}
8. a4 {[%emt 0:00:00]} Bd7 {[%emt 0:00:34]} 9. c3 {[%emt 0:00:00]} O-O {
[%emt 0:00:05]} 10. Bc2 {[%emt 0:00:00]} b4 {[%emt 0:00:02]} 11. Re1 {[%emt 0:
00:00]} Re8 {[%emt 0:00:27]} 12. a5 {[%emt 0:01:05]} Rb8 {[%emt 0:00:15]} 13.
Nbd2 {[%emt 0:00:02]} Bf8 {[%emt 0:00:48]} 14. Bb3 {[%emt 0:00:37]} bxc3 {
[%emt 0:00:35]} 15. bxc3 {[%emt 0:00:00]} h6 {[%emt 0:00:16]} 16. h3 {[%emt 0:
00:09]} Be6 {[%emt 0:00:15]} 17. Ba4 {[%emt 0:00:00]} Bd7 {[%emt 0:00:00]} 18.
Nc4 {[%emt 0:00:34]} Ne7 {[%emt 0:00:20]} 19. Bc2 {[%emt 0:00:07]} Ng6 {
[%emt 0:00:00]} 20. d4 {[%emt 0:00:21]} exd4 {[%emt 0:01:03]} 21. cxd4 {
[%emt 0:00:00]} d5 {[%emt 0:01:31]} 22. exd5 {[%emt 0:00:00]} Rxe1+ {[%emt 0:
00:00]} 23. Qxe1 {[%emt 0:00:00]} Nxd5 {[%emt 0:00:00]} 24. Bxg6 {[%emt 0:01:
20]} fxg6 {[%emt 0:00:00]} 25. Nce5 {[%emt 0:00:00]} Be8 {[%emt 0:01:38]} 26.
Ba3 {[%emt 0:00:50]} Bd6 {[%emt 0:01:05]} 27. Bc5 {[%emt 0:01:02]} g5 {[%emt 0:
02:33]} 28. Rc1 {[%emt 0:01:57]} Nf4 {[%emt 0:02:01]} 29. Qe4 {[%emt 0:01:57]}
Bxe5 {[%emt 0:00:47]} 30. Nxe5 {[%emt 0:01:37]} Qd5 {[%emt 0:00:16]} 31. Qxd5+
{[%emt 0:01:59]} Nxd5 {[%emt 0:00:00]} 32. Re1 {[%emt 0:00:05]} Rb5 {[%emt 0:
00:26]} 33. Kh2 {[%emt 0:00:18]} Bf7 {[%emt 0:00:53]} 34. Nxf7 {[%emt 0:01:35]}
Kxf7 {[%emt 0:00:00]} 35. Re5 {[%emt 0:00:00]} c6 {[%emt 0:00:00]} 36. Rf5+ {
[%emt 0:00:00]} Ke6 {[%emt 0:00:00]} 37. Re5+ {[%emt 0:00:00]} Kf7 {[%emt 0:00:
41]} 38. Rf5+ {[%emt 0:00:00]} Kg6 {[%emt 0:00:00]} 39. Re5 {[%emt 0:00:00]}
Rxa5 {[%emt 0:00:00]} 40. Re6+ {[%emt 0:00:00]} Kf5 {[%emt 0:00:00]} 41. Rxc6 {
[%emt 0:00:12]} Ra2 {[%emt 0:00:00]} 42. Rd6 {[%emt 0:00:35]} Nf6 {[%emt 0:00:
43]} 43. d5 {[%emt 0:01:04]} Ke4 {[%emt 0:03:17]} 44. Rd8 {[%emt 0:02:51]} Nxd5
{[%emt 0:00:00]} 45. Re8+ {[%emt 0:00:07]} Kf5 {[%emt 0:00:08]} 46. Bd4 {
[%emt 0:00:52]} Nf6 {[%emt 0:00:00]} 47. Re7 {[%emt 0:00:00]} Rd2 {[%emt 0:00:
00]} 48. Be3 {[%emt 0:00:35]} Rd7 {[%emt 0:00:35]} 49. g4+ {[%emt 0:00:00]} Kg6
{[%emt 0:00:00]} 50. Re6 {[%emt 0:00:00]} a5 {[%emt 0:00:00]} 51. Ra6 {[%emt 0:
00:00]} Rd5 {[%emt 0:00:00]} 52. Kg3 {[%emt 0:00:00]} Kh7 {[%emt 0:00:09]} 53.
Kf3 {[%emt 0:00:05]} Rb5 {[%emt 0:00:00]} 54. Bd4 {[%emt 0:00:00]} Rb3+ {
[%emt 0:00:00]} 55. Kg2 {[%emt 0:00:22]} Nd5 {[%emt 0:00:00]} 56. Be5 {[%emt 0:
00:00]} Rb5 {[%emt 0:00:13]} 57. Ra7 {[%emt 0:00:40]} Ne3+ {[%emt 0:00:00]} 58.
fxe3 {[%emt 0:00:00]} Rxe5 {[%emt 0:00:00]} 59. Kf3 {[%emt 0:00:00]} Kg6 {
[%emt 0:00:25]} 60. Ra6+ {[%emt 0:00:00]} Kf7 {[%emt 0:00:00]} 61. Ra7+ {
[%emt 0:00:00]} Kf6 {[%emt 0:00:00]} 62. Ra6+ {[%emt 0:00:00]} Ke7 {[%emt 0:00:
00]} 63. Ra7+ {[%emt 0:00:00]} Kd6 {[%emt 0:00:00]} 64. Rxg7 {[%emt 0:00:37]}
Kc5 {[%emt 0:00:00]} 65. Rg6 {[%emt 0:00:00]} a4 {[%emt 0:00:00]} 66. Rxh6 {
[%emt 0:00:00]} a3 {[%emt 0:00:00]} 67. h4 {[%emt 0:00:00]} gxh4 {[%emt 0:00:
56]} 68. Rxh4 {[%emt 0:00:00]} a2 {[%emt 0:00:00]} 69. Rh1 {[%emt 0:00:00]} Kc4
{[%emt 0:00:26]} 70. Kf4 {[%emt 0:00:01]} Ra5 {[%emt 0:00:00]} 71. Ra1 {
[%emt 0:00:00]} Kb3 {[%emt 0:00:00]} 72. g5 {[%emt 0:00:00]} Kb2 {[%emt 0:00:
00]} 73. Rxa2+ {[%emt 0:00:20]} Rxa2 {[%emt 0:00:00]} 74. g6 {[%emt 0:00:00]}
Kc3 {[%emt 0:00:00]} 75. Kf5 {[%emt 0:00:00]} Rf2+ {[%emt 0:00:00]} 76. Ke6 {
[%emt 0:00:00]} Rg2 {[%emt 0:00:00]} 77. Kf7 {[%emt 0:00:00]} Kd3 {[%emt 0:00:
00]} 78. g7 {[%emt 0:00:00]} Rxg7+ {[%emt 0:00:00]} 79. Kxg7 {[%emt 0:00:00]}
Kxe3 1/2-1/2